[Event "III Menorca Open-A 2024"]
[Site "Ciutadella Menorca"]
[Date "2024.04.06"]
[Round "7.20"]
[White "Saine, Zachary"]
[Black "Salord Guillen, Joan"]
[Result "0-1"]
[ECO "B56"]
[WhiteElo "2010"]
[BlackElo "1926"]
[Annotator "NA RC"]
[PlyCount "110"]
[EventDate "2024.04.02"]
[EventType "swiss"]
[EventCountry "ESP"]
[SourceTitle "playchess.com"]
[Source "ChessBase"]
[SourceQuality "1"]
[TimeControl "5400+30"]

1. e4 {[%emt 0:06:19]} c5 {[%emt 0:00:06]} 2. Nf3 {[%emt 0:00:25]} d6 {[%emt 0:00:08]} 3. d4 {[%emt 0:00:06]} cxd4 {[%emt 0:00:08]} 4. Nxd4 {[%emt 0:00:05]} Nf6 {[%emt 0:00:07]} 5. Nc3 {[%emt 0:00:06]} e5 {[%emt 0:00:09]} 6. Nb3 {[%emt 0:00:15]} Be7 {[%emt 0:00:10]} 7. f3 {[%emt 0:01:19]} O-O {[%emt 0:01:11]} 8. Be3 {[%emt 0:01:05]} Be6 {[%emt 0:01:56]} 9. Qd2 {[%emt 0:03:03]} a5 {[%emt 0:06:16]} 10. Bb5 {[%emt 0:03:27]} Nc6 {[%emt 0:07:16]} 11. O-O-O {[%emt 0:04:09]} Ne8 {[%emt 0:06:04] B56: Classical Sicilian: Unusual Lines.} 12. Kb1 {[%emt 0:15:06]} Qb8 {[%emt 0:04:55]} 13. Nd5 {[%emt 0:06:16]} Bxd5 {[%emt 0:14:27]} 14. exd5 {[%emt 0:00:15]} Nc7 {[%emt 0:01:51]} 15. dxc6 {[%emt 0:12:25]} Nxb5 {[%emt 0:00:08]} 16. Nxa5 {[%emt 0:05:54]} Qc7 {[%emt 0:14:18]} 17. Nb3 {[%emt 0:16:10]} bxc6 {[%emt 0:00:18]} 18. c4 {[%emt 0:00:09]} Na7 {[%emt 0:01:50]} 19. Qa5 {[%emt 0:01:08]} Qb7 {[%emt 0:05:24]} 20. Qb6 {[%emt 0:01:37]} Qd7 {[%emt 0:00:16]} 21. Nc5 {[%emt 0:03:11]} Qf5+ {[%emt 0:00:54]} 22. Ne4 {[%emt 0:00:01]} Qe6 {[%emt 0:07:06]} 23. Qa6 {[%emt 0:05:01]} Rfc8 {[%emt 0:13:46]} 24. Bxa7 {[%emt 0:09:15]} Rc7 {[%emt 0:00:07]} 25. Qb6 {[%emt 0:01:08]} Rcxa7 {[%emt 0:03:39]} 26. Qxc6 {[%emt 0:00:35]} Rxa2 {[%emt 0:00:58]} 27. Qd5 {[%emt 0:01:24]} Qc8 {[%emt 0:02:40]} 28. Nc3 {[%emt 0:00:31]} Ra1+ {[%emt 0:00:57]} 29. Kc2 {[%emt 0:00:02]} R1a5 {[%emt 0:00:11]} 30. Nb5 $2 {[%emt 0:00:31]} ({White should play} 30. Qe4 $15) 30... Qa6 {[%emt 0:03:24]} 31. Rd3 {[%emt 0:01:42]} Rc8 {[%emt 0:01:07]} 32. Rc3 {[%emt 0:01:32]} Rc5 {[%emt 0:00:50]} 33. Qe4 {[%emt 0:00:21]} Qc8 {[%emt 0:00:45]} 34. g4 {[%emt 0:00:58]} Ra4 {[%emt 0:00:46]} 35. b3 {[%emt 0:00:40]} Ra2+ {[%emt 0:00:08]} 36. Kd3 {[%emt 0:00:06]} Bg5 {[%emt 0:00:55]} 37. Rd1 {[%emt 0:00:28]} Ra5 {[%emt 0:01:25]} 38. Qf5 {[%emt 0:01:07]} Qd8 {[%emt 0:00:46]} 39. b4 {[%emt 0:00:14]} g6 {[%emt 0:00:45]} 40. Qe4 {[%emt 0:01:03]} d5 {[%emt 0:00:07]} 41. Qe1 {[%emt 0:00:09]} dxc4+ {[%emt 0:00:53]} 42. Ke2 {[%emt 0:01:00]} Ra2+ {[%emt 0:00:05]} 43. Kf1 {[%emt 0:00:05]} Rd5 {[%emt 0:00:15]} 44. Rxd5 $19 {[%emt 0:01:05]} Qxd5 {[%emt 0:00:01]} 45. Nc7 {[%emt 0:00:30]} Qd8 {[%emt 0:00:40]} 46. Nb5 {[%emt 0:00:34]} Qb6 {[%emt 0:00:38]} 47. h4 {[%emt 0:00:53]} Bd2 {[%emt 0:00:28]} 48. Qe2 {[%emt 0:00:25]} Ra1+ {[%emt 0:00:09]} 49. Kg2 {[%emt 0:00:05]} Qg1+ {[%emt 0:00:08]} 50. Kh3 {[%emt 0:00:05]} Qh1+ {[%emt 0:00:16]} 51. Qh2 {[%emt 0:00:01]} Qxh2+ {[%emt 0:00:10]} 52. Kxh2 {[%emt 0:00:02]} Bxc3 {[%emt 0:00:07]} 53. Nxc3 {[%emt 0:00:04]} Ra3 {[%emt 0:00:13]} 54. Nb5 {[%emt 0:00:11]} Rb3 {[%emt 0:00:08]} 55. Nd6 {[%emt 0:00:38]} c3 {[%emt 0:00:15]} 0-1

[Event "III Menorca Open-A 2024"]
[Site "Ciutadella Menorca"]
[Date "2024.04.06"]
[Round "7.21"]
[White "Sosa, Tomas"]
[Black "Divya Deshmukh"]
[Result "1-0"]
[ECO "B23"]
[WhiteElo "2562"]
[BlackElo "2427"]
[Annotator "RC"]
[PlyCount "177"]
[EventDate "2024.04.02"]
[EventType "swiss"]
[EventCountry "ESP"]
[SourceTitle "playchess.com"]
[Source "ChessBase"]
[SourceQuality "1"]
[TimeControl "5400+30"]

1. e4 {[%emt 0:00:05]} c5 {[%emt 0:00:08]} 2. Nf3 {[%emt 0:00:06]} Nc6 {[%emt 0:00:03]} 3. Nc3 {[%emt 0:00:48]} g6 {[%emt 0:00:15]} 4. Bb5 {[%emt 0:00:36]} Nd4 {[%emt 0:02:36]} 5. Bc4 {[%emt 0:01:56]} Bg7 {[%emt 0:00:04]} 6. Nxd4 {[%emt 0:03:50]} cxd4 {[%emt 0:00:04]} 7. Qf3 {[%emt 0:00:12]} Nh6 {[%emt 0:00:05]} 8. Ne2 {[%emt 0:00:38]} O-O {[%emt 0:02:03]} 9. d3 {[%emt 0:04:31]} Ng4 {[%emt 0:00:06]} 10. Bb3 {[%emt 0:00:03]} d6 {[%emt 0:03:03]} 11. Qg3 {[%emt 0:00:04]} Nf6 {[%emt 0:14:39]} 12. h4 {[%emt 0:00:32]} Nh5 {[%emt 0:03:20]} 13. Qf3 {[%emt 0:02:58]} Qd7 {[%emt 0:04:28]} 14. Rg1 {[%emt 0:06:33]} a5 {[%emt 0:08:42]} 15. a4 {[%emt 0:17:59]} Kh8 {[%emt 0:05:25]} 16. g4 {[%emt 0:06:22]} Nf6 {[%emt 0:00:20]} 17. g5 {[%emt 0:00:04]} Nh5 {[%emt 0:01:52]} 18. Nf4 {[%emt 0:04:14]} Nxf4 {[%emt 0:06:28]} 19. Bxf4 {[%emt 0:00:19]} Qe8 {[%emt 0:12:05]} 20. Bd2 {[%emt 0:03:08]} Be6 {[%emt 0:00:46]} 21. h5 {[%emt 0:06:45]} Bxb3 {[%emt 0:00:35]} 22. cxb3 {[%emt 0:00:08]} f5 {[%emt 0:01:51]} 23. gxf6 {[%emt 0:01:12]} Rxf6 {[%emt 0:00:14]} 24. Qh3 {[%emt 0:00:36]} gxh5 {[%emt 0:04:11]} 25. Rc1 {[%emt 0:15:01]} Qf7 {[%emt 0:03:22]} 26. Rc8+ {[%emt 0:07:20]} Rxc8 {[%emt 0:00:02]} 27. Qxc8+ {[%emt 0:00:05]} Bf8 {[%emt 0:02:38]} 28. Qxb7 {[%emt 0:01:16]} Rg6 {[%emt 0:04:26]} 29. Rxg6 {[%emt 0:00:55]} hxg6 {[%emt 0:01:26]} 30. Qd5 {[%emt 0:01:12]} Qf3 {[%emt 0:04:35]} 31. Qxd4+ {[%emt 0:00:13]} Bg7 {[%emt 0:02:38]} 32. Qe3 {[%emt 0:00:05]} Qg4 {[%emt 0:03:32]} 33. Qg5 {[%emt 0:02:52]} Qe6 {[%emt 0:00:02]} 34. Bxa5 {[%emt 0:00:26]} Kh7 {[%emt 0:00:01]} 35. Bd2 {[%emt 0:01:10]} Bxb2 {[%emt 0:06:59]} 36. a5 {[%emt 0:01:23]} Bd4 {[%emt 0:00:33]} 37. a6 {[%emt 0:02:19]} Qf7 {[%emt 0:04:27]} 38. Qf4 {[%emt 0:00:57]} Qe6 {[%emt 0:00:45]} 39. Ke2 {[%emt 0:04:14]} d5 {[%emt 0:00:06]} 40. b4 {[%emt 0:02:41]} dxe4 {[%emt 0:00:36]} 41. Qxe4 {[%emt 0:00:12]} Qf6 {[%emt 0:00:01]} 42. Qf4 {[%emt 0:02:17]} Qe6+ {[%emt 0:00:01]} 43. Qe4 {[%emt 0:00:00]} Qf6 {[%emt 0:00:00]} 44. Kd1 {[%emt 0:01:27]} h4 {[%emt 0:01:01]} 45. Qf4 {[%emt 0:00:20]} h3 {[%emt 0:01:36]} 46. Qh6+ {[%emt 0:02:07]} Kg8 {[%emt 0:00:01]} 47. Qxh3 {[%emt 0:00:24]} Qxa6 {[%emt 0:00:01]} 48. Ke2 {[%emt 0:00:17]} Qf6 {[%emt 0:00:34]} 49. Qf3 {[%emt 0:00:06]} Qe5+ {[%emt 0:00:28]} 50. Qe4 {[%emt 0:00:30]} Qh5+ {[%emt 0:00:04]} 51. Ke1 {[%emt 0:00:55]} Bf6 {[%emt 0:00:03]} 52. Qc4+ {[%emt 0:00:18]} Kg7 {[%emt 0:00:01]} 53. Be3 {[%emt 0:00:49]} Qh1+ {[%emt 0:02:28]} 54. Ke2 {[%emt 0:00:01]} Qh5+ {[%emt 0:00:23]} 55. Kd2 {[%emt 0:00:13]} Qe5 {[%emt 0:00:29]} 56. Qb3 {[%emt 0:00:22]} Qb5 {[%emt 0:00:11]} 57. Bc5 {[%emt 0:00:16]} Bg5+ {[%emt 0:01:04]} 58. Kc2 {[%emt 0:00:06]} Bf6 {[%emt 0:00:03]} 59. Kd2 {[%emt 0:01:33]} Bg5+ {[%emt 0:00:14]} 60. Ke2 {[%emt 0:00:01]} Qb8 {[%emt 0:01:27]} 61. Qe6 {[%emt 0:00:55]} Qc7 {[%emt 0:00:15]} 62. d4 {[%emt 0:00:50]} Qb7 {[%emt 0:00:29]} 63. d5 {[%emt 0:00:47]} Qb5+ {[%emt 0:00:06]} 64. Kf3 {[%emt 0:00:01]} Kh6 {[%emt 0:01:24]} 65. Be3 {[%emt 0:01:38]} Qxb4 {[%emt 0:00:31]} 66. Qh3+ {[%emt 0:00:30]} Kg7 {[%emt 0:00:00]} 67. Bxg5 {[%emt 0:00:07]} Qb3+ {[%emt 0:00:01]} 68. Be3 {[%emt 0:00:30]} Qxd5+ {[%emt 0:00:03]} 69. Kg3 {[%emt 0:00:09]} Qe5+ {[%emt 0:01:17]} 70. Kg2 {[%emt 0:00:08]} Qd5+ {[%emt 0:00:45]} 71. Qf3 {[%emt 0:00:04]} Qc4 {[%emt 0:00:03]} 72. Bg5 {[%emt 0:00:30]} Qc5 {[%emt 0:00:05]} 73. Qe3 {[%emt 0:00:18]} Qd5+ {[%emt 0:00:06]} 74. f3 {[%emt 0:00:17]} e5 {[%emt 0:00:58]} 75. Qa7+ {[%emt 0:00:47]} Qf7 {[%emt 0:01:14]} 76. Qc5 {[%emt 0:01:06]} Qe6 {[%emt 0:01:01]} 77. Kg3 {[%emt 0:00:44]} Kf7 {[%emt 0:00:13]} 78. Qc7+ {[%emt 0:00:40]} Ke8 {[%emt 0:00:01]} 79. Qd8+ {[%emt 0:00:06]} Kf7 {[%emt 0:00:01]} 80. Bh6 {[%emt 0:00:57]} Qf5 {[%emt 0:00:01]} 81. Qd5+ {[%emt 0:00:23]} Kf6 {[%emt 0:01:43]} 82. Bd2 {[%emt 0:00:25]} g5 {[%emt 0:00:10]} 83. Qc4 {[%emt 0:00:38]} Kg7 {[%emt 0:01:19]} 84. Qc6 {[%emt 0:00:51]} Kf7 {[%emt 0:00:18]} 85. Qd6 {[%emt 0:00:13]} Kg8 {[%emt 0:00:44]} 86. Qe7 {[%emt 0:00:01]} g4 {[%emt 0:00:17]} 87. Qd8+ {[%emt 0:00:08]} Kf7 {[%emt 0:00:42]} 88. Qd5+ {[%emt 0:00:40]} Kg6 {[%emt 0:00:30]} 89. fxg4 {[%emt 0:00:22]} 1-0

[Event "III Menorca Open-A 2024"]
[Site "Ciutadella Menorca"]
[Date "2024.04.06"]
[Round "7.22"]
[White "Vogel, Roven"]
[Black "Vega Gutierrez, Sabrina"]
[Result "1-0"]
[ECO "D37"]
[WhiteElo "2528"]
[BlackElo "2383"]
[Annotator "TA"]
[PlyCount "89"]
[EventDate "2024.04.02"]
[EventType "swiss"]
[EventCountry "ESP"]
[SourceTitle "playchess.com"]
[Source "ChessBase"]
[SourceQuality "1"]
[TimeControl "5400+30"]

{[%evp 9,89,24,29,28,36,7,11,0,15,18,14,18,17,16,15,4,8,0,0,0,0,-10,62,39,44,25,47,45,46,60,34,0,41,42,55,52,95,56,58,23,50,39,42,18,14,20,14,23,16,6,6,8,9,0,0,0,0,0,0,0,13,11,11,11,11,0,0,0,0,0,0,0,0,0,480,480,479,454,1669,1669,29972,29971]} 1. Nf3 {[%emt 0:00:08]} Nf6 {[%emt 0:00:32]} 2. c4 {[%emt 0:00:04]} e6 {[%emt 0:00:22]} 3. d4 {[%emt 0:00:36]} a6 {[%emt 0:00:22]} 4. Nc3 {[%emt 0:00:17]} d5 {[%emt 0:00:08]} 5. cxd5 {[%emt 0:00:34]} exd5 {[%emt 0:00:09]} 6. Bg5 {[%emt 0:00:07]} Be6 {[%emt 0:00:28]} 7. Bxf6 {[%emt 0:02:04]} Qxf6 {[%emt 0:00:11]} 8. Qb3 {[%emt 0:00:05] The position is equal.} Ra7 {[%emt 1:32:18]} 9. a3 Qd8 {[%emt 0:00:00]} 10. Qc2 {[%emt 1:31:35]} Nd7 {[%emt 0:00:00]} 11. e4 {[%emt 0:00:00]} dxe4 {[%emt 0:00:00]} 12. Nxe4 {[%emt 0:00:00]} Be7 {[%emt 0:00:00] Against Neg5} 13. O-O-O {[%emt 0:00:00]} c6 {[%emt 0:00:00]} 14. h4 {[%emt 0:00:00]} b5 {[%emt 0:00:00]} 15. Kb1 {[%emt 0:02:30][%cal Of1d3]} Kf8 {[%emt 0:00:00]} (15... Bd5 $11) 16. Nfg5 {[%emt 0:00:00] Threatens to win with Nxe6+. White is more active. Excellent horsemanship.} Bd5 {[%emt 0:00:00]} 17. Nc3 {[%emt 0:00:00]} h6 {[%emt 0:00:00]} 18. Nxd5 {[%emt 0:00:00]} cxd5 {[%emt 0:00:00]} 19. Nf3 {[%emt 0:00:00]} h5 {[%emt 0:00:00]} 20. Qf5 {[%emt 0:00:00]} g6 {[%emt 0:00:00]} 21. Qxd5 {[%emt 0:00:00]} Kg7 {[%emt 0:00:00]} 22. Qb3 {[%emt 0:00:00]} Qb6 {[%emt 0:00:00]} 23. Bd3 {[%emt 0:00:00]} Bf6 {[%emt 0:00:00][%cal Od7b8]} 24. Rhe1 {[%emt 0:00:00]} Rd8 {[%emt 0:00:00][%cal Od7f8]} 25. Re4 {[%emt 0:00:00] And now g4 would win.} Nf8 {[%emt 0:00:00][%cal Of8e6]} 26. g4 {[%emt 0:00:00]} hxg4 {[%emt 0:00:00]} 27. Rxg4 {[%emt 0:00:00] Hoping for h5.} Qe6 $1 {[%emt 0:00:00]} 28. Qxe6 {[%emt 0:00:00]} Nxe6 {[%emt 0:00:00]} 29. Bc2 {[%emt 0:00:00]} Rad7 {[%emt 0:00:00]} 30. Bf5 {[%emt 0:00:00] Threatening Bxe6.} Rd6 {[%emt 0:00:00]} 31. Bxe6 {[%emt 0:00:00]} Rxe6 {[%emt 0:00:00]} 32. h5 {[%emt 0:00:00]} Re2 {[%emt 0:00:00]} 33. hxg6 {[%emt 0:00:00]} fxg6 {[%emt 0:01:44]} 34. Rdg1 {[%emt 0:00:00]} Rxf2 {[%emt 0:04:23]} 35. Rxg6+ {[%emt 0:00:00]} Kf7 {[%emt 0:00:13]} 36. R6g3 {[%emt 0:00:00]} Re8 {[%emt 0:00:34]} 37. R1g2 {[%emt 0:01:24]} Rxg2 {[%emt 0:00:04]} 38. Rxg2 $11 {[%emt 0:00:06][%mdl 4096] Endgame. KRB-KRN} Re3 {[%emt 0:00:12]} 39. Ng5+ {[%emt 0:00:52]} Ke7 {[%emt 0:01:35]} 40. Rg4 {[%emt 0:00:07]} a5 {[%emt 0:06:34][%cal Ba6a5,Ba5b4][%mdl 32]} 41. Kc2 {[%emt 0:00:47]} Bxg5 $4 {[%emt 0:00:39][%mdl 8192]} (41... Kd7 $11) 42. Rxg5 $18 {[%emt 0:00:02] Re5+ would now be deadly.} Re2+ {[%emt 0:00:28]} 43. Kc1 {[%emt 0:01:46]} b4 {[%emt 0:00:12] [#]} (43... Re6 $142 44. Rxb5 Rd6 45. Rxa5 Rxd4) 44. axb4 $1 {[%emt 0:01:53] White wants to mate with Re5+.} ({Not} 44. Rxa5 bxa3 45. Rxa3 Rh2 $11) 44... axb4 {[%emt 0:00:28] [#]} 45. Re5+ $1 {[%emt 0:08:03] Weighted Error Value: White=0.08 (flawless) /Black=0.48.  Loses game:     	---       	Black=1      Mistake:       	---       	Black=2      Inaccurate:     	White=4     	Black=4      OK:         	White=13    	Black=20     Best:        	White=1     	Black=1      Strong:       	White=1     	Black=1} ({Inferior is} 45. Rb5 Kd7 $11) 1-0

[Event "III Menorca Open-A 2024"]
[Site "Ciutadella Menorca"]
[Date "2024.04.06"]
[Round "7.23"]
[White "Fernandez Guillen, Ernesto J."]
[Black "Oro, Faustino"]
[Result "1-0"]
[ECO "A05"]
[WhiteElo "2474"]
[BlackElo "2330"]
[Annotator "TA"]
[PlyCount "77"]
[EventDate "2024.04.02"]
[EventType "swiss"]
[EventCountry "ESP"]
[SourceTitle "playchess.com"]
[Source "ChessBase"]
[SourceQuality "1"]
[TimeControl "5400+30"]

{[%evp 11,77,0,2,-2,6,0,0,-6,0,0,2,0,25,12,35,35,48,58,47,50,54,38,33,23,80,68,96,93,91,105,109,95,96,89,105,105,118,124,114,125,117,125,121,124,216,213,191,197,234,209,325,315,495,489,781,-506,-488,-518,-506,-500,-464,-517,-514,-548,-473,-464,29997,29998]} 1. Nf3 {[%emt 0:04:21]} Nf6 {[%emt 0:01:48]} 2. g3 {[%emt 0:00:20]} c5 {[%emt 0:02:38]} 3. Bg2 {[%emt 0:00:15]} g6 {[%emt 0:00:05]} 4. O-O {[%emt 0:05:16]} Bg7 {[%emt 0:00:49]} 5. d3 {[%emt 0:02:32]} O-O {[%emt 0:02:20]} 6. e4 {[%emt 0:01:03]} d6 {[%emt 0:00:17]} 7. e5 {[%emt 0:02:17]} Nd5 {[%emt 0:20:19]} 8. Re1 {[%emt 0:02:30]} Nc6 {[%emt 0:08:49]} 9. exd6 {[%emt 0:01:30] The position is equal.} Qxd6 {[%emt 0:00:30]} 10. Nbd2 {[%emt 0:00:20]} Qd8 {[%emt 0:08:54]} 11. a4 {[%emt 0:03:08]} e5 {[%emt 0:05:26]} 12. Nc4 {[%emt 0:01:38]} f6 {[%emt 0:02:47]} 13. Nfd2 {[%emt 0:02:07][%cal Bf3d2,Bd2e4,Be4c3][%mdl 32]} Nde7 {[%emt 0:04:56]} 14. Ne4 {[%emt 0:08:04]} b6 {[%emt 0:00:19] [#]} 15. a5 $1 {[%emt 0:00:06] Threatens to win with axb6.} Rb8 {[%emt 0:01:32][%cal Ba8b8,Bb8b7,Bb7d7][%mdl 32]} 16. axb6 {[%emt 0:04:33]} (16. f4 {is interesting.} Be6 17. fxe5 Nxe5 18. Nxe5 fxe5 19. axb6 axb6 20. Ra7) 16... axb6 {[%emt 0:00:02]} 17. f4 {[%emt 0:00:09]} f5 {[%emt 0:13:57]} (17... b5 $11 18. Na3 Bg4 19. Nxf6+ (19. Qxg4 f5 $16) 19... Bxf6 20. Qxg4 Kh8) 18. Nc3 $16 {[%emt 0:05:00][%cal Rf4e5]} Bb7 {[%emt 0:03:01]} 19. fxe5 {[%emt 0:06:00] White is much more active.} Nd4 {[%emt 0:00:19]} 20. Bxb7 {[%emt 0:00:34]} Rxb7 {[%emt 0:00:09]} 21. Nd6 $1 {[%emt 0:00:03]} Rd7 {[%emt 0:01:52]} 22. Ncb5 $1 {[%emt 0:00:19]} Nec6 {[%emt 0:04:16][%cal Od7d6]} 23. Nxd4 {[%emt 0:01:30]} Nxd4 {[%emt 0:00:24]} 24. c3 {[%emt 0:00:15]} Nc6 {[%emt 0:00:10] [#]} 25. d4 {[%emt 0:09:13]} cxd4 {[%emt 0:02:02]} 26. cxd4 {[%emt 0:01:48]} Rxd6 {[%emt 0:02:27]} 27. exd6 {[%emt 0:00:16]} Bxd4+ {[%emt 0:01:42]} (27... Qxd6 $16 28. Qb3+ Kh8) 28. Kh1 {[%emt 0:01:34]} Qxd6 {[%emt 0:00:13] ( -> ...Qd5+)} 29. Qb3+ {[%emt 0:00:07]} Kh8 {[%emt 0:00:25]} 30. Qe6 {[%emt 0:01:21] Prevents Ne5.} Qc7 {[%emt 0:03:52]} (30... Qxe6 {was necessary.} 31. Rxe6 Rc8) 31. Bh6 $18 {[%emt 0:02:32]} Qb7 {[%emt 0:00:29]} (31... Nb8 {keeps fighting.}) 32. Qd5 {[%emt 0:00:10]} (32. Bxf8 $2 Ne5+ (32... Bxb2 $2 33. Qd5 $18) (32... Bxb2 $2 33. Qd5 $18)) 32... Rd8 {[%emt 0:00:18] [#]} (32... Rg8 $142 33. Re2 Bc5) 33. Ra7 $4 {[%emt 0:00:30][%mdl 8192]} Qc8 $19 {[%emt 0:00:25]} (33... Nxa7 34. Qxb7) (33... Qxa7 34. Qxd8+ Nxd8 35. Re8#) 34. Qf7 {[%emt 0:12:35][%csl Ga7][%cal Rf7h7]} Nxa7 {[%emt 0:00:26]} ({Not} 34... Bxb2 35. Qxh7#) 35. Kg2 {[%emt 0:00:01]} Nc6 {[%emt 0:02:31] Dodges Re7} 36. b4 {[%emt 0:02:37]} b5 {[%emt 0:01:21][%cal Od8g8]} ({Worse is} 36... Nxb4 37. Re7 Qc2+ 38. Kh3) 37. Re6 {[%emt 0:00:58]} Rg8 {[%emt 0:03:50]} ({Inferior is} 37... Nxb4 38. Re7 Qc2+ 39. Kh3) 38. Rd6 {[%emt 0:01:17][%cal Od6d4] Dodges Nd8. Intending Rxd4! and mate.} Rd8 $4 {[%emt 0:00:11][%mdl 8192] [#]} (38... Bg7 $19 39. Bxg7+ Rxg7) 39. Rxd4 $1 {[%emt 0:00:27][%mdl 512] A wild game.   Weighted Error Value: White=0.17 (very precise) /Black=0.52.  Missed win:     	White=1     	Black=1      Mistake:       	---       	Black=5      Inaccurate:     	---       	Black=1      OK:         	White=14    	Black=7      Best:        	White=2     	Black=6      Strong:       	White=2     	---        Brilliant:      	White=1     	---} 1-0

[Event "III Menorca Open-A 2024"]
[Site "Ciutadella Menorca"]
[Date "2024.04.06"]
[Round "7.24"]
[White "Fraga Pons, Albert Borja"]
[Black "Setien Solar, Enrique"]
[Result "1-0"]
[ECO "C30"]
[WhiteElo "1958"]
[BlackElo "2055"]
[Annotator "RC"]
[PlyCount "153"]
[EventDate "2024.04.02"]
[EventType "swiss"]
[EventCountry "ESP"]
[SourceTitle "playchess.com"]
[Source "ChessBase"]
[SourceQuality "1"]
[TimeControl "5400+30"]

1. e4 {[%emt 0:00:03]} e5 {[%emt 0:00:48]} 2. Bc4 {[%emt 0:00:35]} Nf6 {[%emt 0:00:52]} 3. d3 {[%emt 0:00:36]} Be7 {[%emt 0:00:48]} 4. f4 {[%emt 0:09:00]} d6 {[%emt 0:01:13]} 5. Nf3 {[%emt 0:00:23]} Nc6 {[%emt 0:01:27]} 6. O-O {[%emt 0:00:16]} O-O {[%emt 0:00:10]} 7. c3 {[%emt 0:06:25]} a6 {[%emt 0:05:16]} 8. a4 {[%emt 0:05:45]} Bd7 {[%emt 0:03:46]} 9. Na3 {[%emt 0:01:08]} Qc8 {[%emt 0:03:07]} 10. Bb3 {[%emt 0:02:20]} Bg4 {[%emt 0:07:45]} 11. f5 {[%emt 0:04:19]} Qd7 {[%emt 0:04:32]} 12. h3 {[%emt 1:05:40]} Bxf3 {[%emt 0:01:26]} 13. Qxf3 {[%emt 0:00:00]} Rad8 {[%emt 0:03:16]} 14. g4 {[%emt 0:00:00]} d5 {[%emt 0:10:36]} 15. g5 {[%emt 0:00:00]} dxe4 {[%emt 0:02:44]} 16. dxe4 {[%emt 0:00:00]} Ne8 {[%emt 0:05:11]} 17. g6 {[%emt 0:00:00]} Qd3 {[%emt 0:03:37]} 18. gxf7+ {[%emt 0:00:00]} Rxf7 {[%emt 0:00:15]} 19. Be3 {[%emt 0:00:00]} Nf6 {[%emt 0:02:34]} 20. Rad1 {[%emt 0:00:00]} Qxe4 {[%emt 0:00:13]} 21. Rxd8+ {[%emt 0:00:00]} Bxd8 {[%emt 0:00:45]} 22. Qxe4 {[%emt 0:00:00]} Nxe4 {[%emt 0:01:36]} 23. Kg2 {[%emt 0:00:00]} Kf8 {[%emt 0:01:46]} 24. Bxf7 {[%emt 0:00:00]} Kxf7 {[%emt 0:00:10]} 25. Kf3 {[%emt 0:00:00]} Nd6 {[%emt 0:00:34]} 26. Kg4 {[%emt 0:00:00]} h6 {[%emt 0:00:24]} 27. Nb1 {[%emt 0:00:00]} Ne4 {[%emt 0:06:48]} 28. Na3 {[%emt 0:00:00]} Be7 {[%emt 0:02:04]} 29. Nc4 {[%emt 0:00:00]} Nf6+ {[%emt 0:02:16]} 30. Kf3 {[%emt 0:00:00]} b5 {[%emt 0:01:19]} 31. axb5 {[%emt 0:00:00]} axb5 {[%emt 0:00:08]} 32. Nd2 {[%emt 0:00:00]} Bd6 {[%emt 0:02:10]} 33. Ne4 {[%emt 0:00:00]} Nd5 {[%emt 0:06:12]} 34. Rd1 {[%emt 0:00:00]} Nce7 {[%emt 0:00:41]} 35. Bc5 {[%emt 0:00:00]} Bxc5 {[%emt 0:01:33]} 36. Nxc5 {[%emt 0:00:00]} c6 {[%emt 0:00:24]} 37. Nd7 {[%emt 0:00:51]} Nxf5 {[%emt 0:00:52]} 38. Nxe5+ {[%emt 0:00:08]} Kf6 {[%emt 0:02:12]} 39. Nxc6 {[%emt 0:00:02]} Nde3 {[%emt 0:04:54]} 40. Rd2 {[%emt 0:00:46]} Nc4 {[%emt 0:00:41]} 41. Re2 {[%emt 0:00:03]} g5 {[%emt 0:00:39]} 42. Nd4 {[%emt 0:00:10]} Ne5+ {[%emt 0:02:57]} 43. Kf2 {[%emt 0:04:01]} Nd3+ {[%emt 0:00:13]} 44. Kg1 {[%emt 0:00:38]} Nf4 {[%emt 0:00:30]} 45. Rh2 {[%emt 0:00:27]} Nh4 {[%emt 0:00:56]} 46. Kf2 {[%emt 0:00:34]} Ke5 {[%emt 0:01:02]} 47. Nf3+ {[%emt 0:00:02]} Ke4 {[%emt 0:00:48]} 48. Nxh4 {[%emt 0:00:29]} gxh4 {[%emt 0:00:03]} 49. b3 {[%emt 0:02:27]} Nd3+ {[%emt 0:00:50]} 50. Kg1 {[%emt 0:01:44]} Ke3 {[%emt 0:03:14]} 51. Ra2 {[%emt 0:02:46]} Nc1 {[%emt 0:01:39]} 52. Ra6 {[%emt 0:00:08]} Ne2+ {[%emt 0:00:47]} 53. Kh2 {[%emt 0:00:20]} Nxc3 {[%emt 0:00:21]} 54. Rxh6 {[%emt 0:00:02]} Ne2 {[%emt 0:02:35]} 55. Rxh4 {[%emt 0:00:10]} Nd4 {[%emt 0:00:32]} 56. Rxd4 {[%emt 0:02:23]} Kxd4 {[%emt 0:00:16]} 57. h4 {[%emt 0:00:01]} Kc3 {[%emt 0:01:46]} 58. h5 {[%emt 0:00:01]} Kxb3 {[%emt 0:00:03]} 59. h6 {[%emt 0:00:05]} Ka2 {[%emt 0:00:07]} 60. h7 {[%emt 0:00:02]} b4 {[%emt 0:00:01]} 61. h8=Q {[%emt 0:00:33]} b3 {[%emt 0:00:10]} 62. Qg8 {[%emt 0:00:21]} Ka3 {[%emt 0:00:37]} 63. Qg3 {[%emt 0:00:06]} Ka2 {[%emt 0:00:19]} 64. Qg8 {[%emt 0:00:16]} Ka3 {[%emt 0:00:29]} 65. Qf8+ {[%emt 0:00:02]} Ka2 {[%emt 0:00:24]} 66. Qf7 {[%emt 0:00:01]} Kb2 {[%emt 0:00:06]} 67. Kg2 {[%emt 0:00:27]} Kc2 {[%emt 0:00:21]} 68. Qc4+ {[%emt 0:00:08]} Kb2 {[%emt 0:00:14]} 69. Kf2 {[%emt 0:00:02]} Ka3 {[%emt 0:00:02]} 70. Qc1+ {[%emt 0:00:19]} Ka2 {[%emt 0:00:10]} 71. Qc4 {[%emt 0:00:24]} Kb2 {[%emt 0:00:38]} 72. Ke2 {[%emt 0:00:02]} Ka3 {[%emt 0:00:06]} 73. Qa6+ {[%emt 0:01:04]} Kb2 {[%emt 0:00:41]} 74. Kd2 {[%emt 0:02:40]} Kb1 {[%emt 0:00:08]} 75. Qf1+ {[%emt 0:00:15]} Ka2 {[%emt 0:03:14]} 76. Kc3 {[%emt 0:00:12]} b2 {[%emt 0:00:36]} 77. Qe2 {[%emt 0:00:02]} 1-0